bitfinex/quotes_SOLUSD_20260109
["timestamp","ask_amount","ask_price","bid_price","bid_amount"]
[1767944628066,2.1936215,140.09,140.08,0.72088832]
[1767944629062,2.16362151,140.09,140.08,0.72088832]
[1767944629462,0.67098999,140.08,140.06,0.2]
[1767944629742,2.1936215,140.07,140.05,7.34024051]
[1767944631372,2.1936215,140.07,140.05,8.06112883]
[1767944632678,3.42963771,140.07,140.05,8.06112883]
[1767944633876,3.42963771,140.07,140.05,0.92088832]
[1767944634258,3.42963771,140.06,140.05,0.92088832]
[1767944634461,3.34324895,140.06,140.05,0.2]
[1767944634668,3.14324894,140.06,140.05,0.2]
[1767944643266,3.14324894,140.06,140.04,0.92088832]
[1767944644376,3.14324894,140.06,140.04,8.06163047]
[1767944644577,3.82748756,140.06,140.04,7.34074215]
[1767944645353,4.11387633,140.06,140.04,7.34074215]
[1767944645764,7.13845088,140.09,140.04,7.34074215]
[1767944645765,13.04,140.1,140.04,7.34074215]
[1767944645964,7.13673993,140.12,140.05,0.66127451]
[1767944646167,3.42963771,140.08,140.05,0.66127451]
[1767944646764,3.42963771,140.07,140.05,0.66127451]
[1767944646980,3.42963771,140.07,140.05,7.80152904]
[1767944647182,3.42963771,140.07,140.06,0.66127451]
[1767944647979,3.42963771,140.08,140.06,0.66127451]
[1767944650680,0.69008524,140.09,140.06,0.66127451]
[1767944650681,3.42963771,140.07,140.06,0.66127451]
[1767944652473,3.42963771,140.07,140.05,7.14025453]
[1767944654483,3.42963771,140.07,140.05,7.82668597]
[1767944654961,3.42963771,140.07,140.06,0.68643144]
[1767944655461,4.11972295,140.09,140.05,7.14025453]
[1767944657286,4.11972295,140.09,140.05,7.82668597]
[1767944659583,0.69008524,140.09,140.06,0.68643144]
[1767944659888,0.69008524,140.07,140.04,21.35144731]
[1767944660096,0.66008525,140.07,140.04,21.35144731]
[1767944660276,0.66008525,140.07,140.05,0.68643144]
[1767944660468,3.42963771,140.08,140.05,0.68643144]
[1767944660668,7.13793356,140.1,140.05,0.68643144]
[1767944660872,3.42963771,140.08,140.05,0.68643144]
[1767944662085,4.11972295,140.08,140.05,7.82661474]
[1767944665978,0.69008524,140.08,140.05,7.82661474]
[1767944666596,0.69008524,140.1,140.06,7.82597051]
[1767944666776,0.69008524,140.11,140.07,0.68643144]
[1767944667774,0.69008524,140.11,140.08,7.13877784]
[1767944670096,0.69008524,140.11,140.08,0.68643144]
[1767944673709,0.69008524,140.11,140.08,7.82500879]
[1767944676684,0.70364103,140.12,140.09,0.71894853]
[1767944677196,0.70364103,140.12,140.08,7.13857735]
[1767944677402,0.70364103,140.12,140.08,7.85752588]
[1767944680502,0.70364103,140.11,140.08,7.85752588]
[1767944686389,0.70364103,140.11,140.08,7.13857735]
[1767944686595,0.70364103,140.11,140.08,7.85752588]
[1767944701609,0.70364103,140.11,140.07,30.88751084]
[1767944701610,0.70364103,140.1,140.07,20.8980397]
[1767944702312,0.70364103,140.1,140.07,20.17909117]
[1767944702838,0.70364103,140.1,140.07,7.13909117]
[1767944703003,0.65496303,140.09,140.06,7.13979722]
[1767944703699,0.65496303,140.09,140.06,7.8513602]
[1767944718844,2.84847863,140.09,140.06,7.8513602]
[1767944719956,0.65496303,140.09,140.06,7.8513602]
[1767944721552,0.67504413,140.08,140.05,7.14030703]
[1767944721851,2.1935156,140.14,140.04,31.79262399]
[1767944721852,0.67504413,140.06,140.04,7.34065291]
[1767944722546,0.67504413,140.06,140.04,0.2]
[1767944722547,0.67504413,140.05,140.04,0.2]
[1767944722738,0.64504411,140.05,140.04,0.2]
[1767944724855,0.64504411,140.05,140.03,0.2]
[1767944726439,0.64504411,140.05,140.01,7.84337754]
[1767944726935,0.67504413,140.04,140.01,7.14222239]
[1767944727252,13.04,140.07,140.01,0.70115515]
[1767944727450,2.1935156,140.04,140.01,0.70115515]
[1767944728348,2.16351558,140.04,140.01,0.70115515]
[1767944728559,7.14037923,140.05,140.01,0.70115515]
[1767944728857,2.1935156,140.04,140.01,0.70115515]
[1767944729054,0.67504413,140.04,140.01,0.70115515]
[1767944729452,0.67504413,140.04,140.0,10.03734594]
[1767944731262,0.67504413,140.04,140.0,7.84383034]
[1767944731560,0.67504413,140.04,140.0,10.03734594]
[1767944732062,0.39640423,140.03,140.0,0.70115515]
[1767944732958,0.39640423,140.03,139.99,2.90748111]
[1767944733472,0.39640423,140.03,139.98,15.94748111]
[1767944733637,0.67225773,140.02,139.98,15.94748111]
[1767944734950,0.39916277,140.01,139.98,15.94748111]
[1767944735256,0.39916277,140.01,139.97,0.71396551]
[1767944735257,0.66952678,140.0,139.97,0.71396551]
[1767944735559,0.66952678,140.0,139.98,2.1935156]
[1767944735764,0.66952678,140.0,139.97,2.90748111]
[1767944738683,0.66952678,140.0,139.97,0.71396551]
[1767944739856,0.66952678,140.0,139.97,10.05175568]
[1767944740171,0.66952678,140.0,139.97,9.33779017]
[1767944741465,0.66952678,140.0,139.98,2.1935156]
[1767944742745,0.66952678,140.0,139.98,2.90748111]
[1767944743058,0.66952678,140.0,139.98,0.71396551]
[1767944747771,0.66952678,140.0,139.97,0.71396551]
[1767944747976,0.40186641,139.99,139.96,0.71396551]
[1767944748656,0.40451625,139.97,139.93,6.63368912]
[1767944748857,2.1935156,139.98,139.93,5.91972361]
[1767944749166,7.14355618,139.99,139.96,2.1935156]
[1767944749375,7.14355618,139.99,139.97,1.6225794]
[1767944749571,7.14355618,139.99,139.93,10.05358119]
[1767944749874,7.14355618,139.99,139.97,2.1935156]
[1767944750747,7.14355618,139.99,139.94,7.85987032]
[1767944750946,7.14355618,139.99,139.97,2.1935156]
[1767944752459,120.95377416,140.03,139.98,2.1935156]
[1767944752658,13.04,140.02,140.0,2.1935156]
[1767944752859,7.14183688,140.02,139.99,2.1935156]
[1767944754259,7.14183688,140.02,139.99,2.90748111]
[1767944754460,7.14183688,140.02,139.99,0.71396551]
[1767944754880,7.14183688,140.02,139.97,0.71396551]
[1767944755369,10.57423903,140.02,139.97,4.14636766]
[1767944756173,10.57423903,140.02,139.97,0.71396551]
[1767944756367,10.57423903,140.02,139.97,4.14636766]
[1767944757877,3.43240215,140.0,139.97,0.71396551]
[1767944760967,3.43240215,139.99,139.95,13.75396551]
[1767944761975,3.43240215,139.98,139.94,0.71396551]
[1767944762177,3.43240215,139.97,139.94,0.71396551]
[1767944763784,3.43240215,139.95,139.93,0.69892881]
[1767944763960,3.43240215,139.95,139.92,13.04]
[1767944764284,3.43240215,139.95,139.91,14.27348099]
[1767944764475,3.43240215,139.94,139.91,14.27348099]
[1767944764873,25.0056078,139.97,139.92,0.69892881]
[1767944765080,3.43240215,139.96,139.92,0.69892881]
[1767944766582,10.57735674,139.96,139.92,0.69892881]
[1767944766763,3.43240215,139.96,139.92,0.69892881]
[1767944766965,10.57686712,139.97,139.93,0.69892881]
[1767944767585,3.43240215,139.96,139.92,0.70392253]
[1767944770185,10.57733363,139.96,139.92,0.70392253]
[1767944772285,3.43240215,139.96,139.92,0.70392253]
[1767944773482,3.43240215,139.96,139.91,24.8583188]
[1767944773784,3.43240215,139.96,139.91,24.15439627]
[1767944773980,7.14403843,139.98,139.93,0.70392253]
[1767944774191,3.43240215,139.97,139.93,7.85013383]
[1767944774480,3.43240215,139.98,139.93,7.85013383]
[1767944774671,3.43240215,139.98,139.94,0.70392253]
[1767944776777,3.43240215,139.97,139.94,0.70392253]
[1767944777183,3.43240215,139.96,139.93,13.74392253]
[1767944777365,7.14389563,139.98,139.93,13.74392253]
[1767944777565,3.43240215,139.96,139.93,13.74392253]
[1767944777765,7.14389563,139.98,139.92,7.14682713]
[1767944777766,3.43240215,139.95,139.92,0.70392253]
[1767944780766,7.14387769,139.98,139.92,0.70392253]
[1767944780972,3.43240215,139.95,139.92,0.70392253]
[1767944781166,25.28789507,139.98,139.92,0.70392253]
[1767944781367,7.42820083,139.98,139.92,0.70392253]
[1767944781585,3.43240215,139.97,139.93,0.70392253]
[1767944781849,7.14387769,139.98,139.93,0.70392253]
[1767944781969,3.43240215,139.97,139.93,0.70392253]
[1767944782773,3.43240215,139.96,139.93,0.70392253]
[1767944784266,3.43240215,139.96,139.93,2.20392253]
[1767944784591,3.43240215,139.96,139.94,0.70392253]
[1767944787094,3.43240215,139.96,139.93,1.5]
[1767944787095,3.43240215,139.95,139.93,1.5]
[1767944787283,3.43240215,139.94,139.92,0.70392253]
[1767944787586,3.43240215,139.94,139.91,13.57455218]
[1767944787794,3.43240215,139.94,139.91,14.27847471]
[1767944787976,3.43240215,139.93,139.91,13.57455218]
[1767944788484,3.43240215,139.94,139.91,14.27847471]
[1767944788982,3.43240215,139.93,139.91,13.57455218]
[1767944789183,7.14560467,139.95,139.91,13.57455218]
[1767944789495,3.43240215,139.93,139.91,13.57455218]
[1767944790098,7.14560467,139.95,139.91,13.57455218]
[1767944790283,7.14643035,139.93,139.91,13.57455218]
[1767944790482,7.14643035,139.93,139.87,0.70392253]
[1767944790483,3.43240215,139.92,139.87,0.70392253]
[1767944790685,3.43240215,139.9,139.87,0.70392253]
[1767944790896,3.43240215,139.9,139.86,0.2]
[1767944790897,28.44490839,139.93,139.86,0.2]
[1767944791077,3.43240215,139.88,139.86,0.2]
[1767944792288,3.43240215,139.87,139.86,0.2]
[1767944792981,7.14928293,139.88,139.86,0.2]
[1767944793186,10.58168508,139.88,139.86,0.2]
[1767944793587,7.14928293,139.88,139.86,0.2]
[1767944793790,10.58168508,139.88,139.86,0.2]
[1767944793985,10.58189811,139.87,139.86,0.2]
[1767944794186,3.43240215,139.87,139.86,0.2]
[1767944794396,10.58153619,139.88,139.86,0.2]
[1767944796789,3.43240215,139.87,139.85,0.69791209]
[1767944797000,3.43240215,139.86,139.83,0.69791209]
[1767944802005,116.14,139.91,139.83,0.69791209]
[1767944802006,0.28432314,139.89,139.83,0.69791209]
[1767944802206,3.43240215,139.87,139.83,0.69791209]
[1767944803384,3.43240215,139.86,139.83,0.69791209]
[1767944804490,3.43240215,139.87,139.83,0.69791209]
[1767944804690,7.14910015,139.88,139.83,0.69791209]
[1767944804885,3.43240215,139.87,139.83,0.69791209]
[1767944807511,3.43240215,139.86,139.83,0.69791209]
[1767944808602,7.14910015,139.88,139.83,0.69791209]
[1767944808906,3.43240215,139.86,139.83,0.69791209]
[1767944809911,7.14910015,139.88,139.83,0.69791209]
[1767944810115,3.43240215,139.87,139.83,0.69791209]
[1767944810928,3.43240215,139.86,139.83,0.69791209]
[1767944814903,7.14950666,139.87,139.83,0.69791209]
[1767944815102,3.43240215,139.86,139.83,0.69791209]
[1767944816498,7.14950666,139.87,139.83,0.69791209]
[1767944816697,2.20181993,139.86,139.83,0.69791209]
[1767944816916,7.14950666,139.87,139.83,0.69791209]
[1767944816917,2.20181993,139.85,139.83,0.69791209]
[1767944817217,2.20181993,139.85,139.82,2.08669268]
[1767944820503,7.15036577,139.86,139.82,2.08669268]
[1767944820698,103.1,139.9,139.82,2.08669268]
[1767944820699,0.68436669,139.93,139.85,2.89973202]
[1767944821005,0.13922697,139.92,139.88,0.69791209]
[1767944821518,2.88073522,139.91,139.87,13.75791209]
[1767944821700,0.68436669,139.92,139.88,0.69791209]
[1767944821909,10.032333,139.94,139.89,0.69791209]
[1767944822109,0.13922697,139.93,139.9,2.89973202]
[1767944823143,0.13922697,139.93,139.9,2.20181993]
[1767944823927,0.13922697,139.93,139.89,2.20181993]
[1767944824123,0.15481745,139.88,139.85,2.8744913]
[1767944824427,0.15481745,139.88,139.85,0.67267137]
[1767944825001,7.82256009,139.89,139.85,0.67267137]
[1767944825198,0.14962754,139.88,139.85,0.67267137]
[1767944825419,0.14962754,139.88,139.84,0.67267137]
[1767944826226,0.14962754,139.88,139.85,2.17267137]
[1767944828223,2.35144747,139.88,139.85,2.17267137]
[1767944828424,2.35144747,139.88,139.85,0.67267137]
[1767944828733,10.07513109,139.89,139.85,0.67267137]
[1767944829422,2.30120391,139.88,139.85,0.67267137]
[1767944829625,2.30120391,139.88,139.83,0.66183679]
[1767944830503,0.09938398,139.88,139.84,0.66183679]
[1767944830905,2.30120391,139.88,139.84,0.66183679]
[1767944831228,2.30120391,139.88,139.85,0.66183679]
[1767944831743,17.86916705,139.91,139.87,0.66183679]
[1767944831744,0.72461214,139.91,139.87,0.66183679]
[1767944832029,2.20181993,139.9,139.87,0.66183679]
[1767944832618,2.30120391,139.9,139.87,0.66183679]
[1767944833133,2.30739367,139.88,139.85,0.66183679]
[1767944833637,0.10557374,139.88,139.85,0.66183679]
[1767944833820,7.87311947,139.89,139.85,0.66183679]
[1767944834018,10.0749394,139.89,139.85,0.66183679]
[1767944835213,0.09938398,139.88,139.85,0.66183679]
[1767944835413,0.09938398,139.88,139.84,2.16183679]
[1767944836531,0.09938398,139.88,139.84,4.36365672]
[1767944836725,0.09938398,139.88,139.84,11.51464166]
[1767944837039,0.09938398,139.88,139.85,0.66183679]
[1767944837536,0.09938398,139.88,139.84,4.36365672]
[1767944837833,0.09938398,139.88,139.84,2.16183679]
[1767944837834,2.30120391,139.88,139.84,2.16183679]
[1767944838334,0.09938398,139.88,139.84,11.51455167]
[1767944840639,9.35031105,139.89,139.85,0.66183679]
[1767944840941,10.07492319,139.89,139.85,0.66183679]
[1767944842034,7.87310326,139.89,139.85,0.66183679]
[1767944842241,10.07492319,139.89,139.85,0.66183679]
[1767944846748,2.20181993,139.88,139.85,0.66183679]
[1767944847060,2.30120391,139.88,139.85,0.66183679]
[1767944847349,0.09938398,139.88,139.85,0.66183679]
[1767944847541,2.30120391,139.88,139.85,0.66183679]
[1767944847951,7.87310326,139.89,139.85,0.66183679]
[1767944848160,0.72461214,139.89,139.85,0.66183679]
[1767944848452,2.92643207,139.89,139.85,0.66183679]
[1767944848654,10.07494167,139.89,139.85,0.66183679]
[1767944851145,103.1,139.97,139.86,0.66183679]
[1767944851361,2.20181993,139.92,139.88,0.66183679]
[1767944852232,2.20181993,139.91,139.88,0.66183679]
[1767944853229,7.24632508,139.92,139.88,0.66183679]
[1767944853448,2.20181993,139.91,139.88,0.66183679]
[1767944854241,2.20181993,139.9,139.87,2.18407606]
[1767944854447,2.34340536,139.88,139.83,7.1512231]
[1767944854755,0.57658042,139.83,139.8,0.443795]
[1767944854936,2.20181993,139.81,139.78,0.68407606]
[1767944855135,2.20181993,139.81,139.7,13.79496204]
[1767944855136,0.099,139.78,139.73,0.68407606]
[1767944855342,2.88931806,139.8,139.75,2.20181993]
[1767944855538,0.68749813,139.8,139.75,2.20181993]
[1767944856143,0.68749813,139.8,139.74,13.06]
[1767944856354,0.68749813,139.8,139.75,2.20181993]
[1767944857258,0.68749813,139.8,139.75,2.88589599]
[1767944857445,0.68749813,139.8,139.75,10.04124955]
[1767944857833,0.68749813,139.8,139.75,7.83942962]
[1767944857834,2.88931806,139.8,139.75,7.83942962]
[1767944858035,10.04205391,139.81,139.76,0.68407606]
[1767944858644,2.77023668,139.8,139.76,0.68407606]
[1767944860938,7.15272337,139.81,139.77,0.68407606]
[1767944861156,0.68749813,139.81,139.77,0.68407606]
[1767944861356,2.88931806,139.81,139.77,0.68407606]
[1767944862042,0.68749813,139.81,139.77,0.68407606]
[1767944863045,2.88931806,139.81,139.77,0.68407606]
[1767944863946,7.15212015,139.82,139.74,0.68407606]
[1767944863947,2.77141558,139.78,139.74,0.68407606]
[1767944864465,0.68514021,139.77,139.72,7.84118319]
[1767944864765,0.57075109,139.76,139.72,7.84118319]
[1767944864981,2.20181993,139.77,139.73,0.68407606]
[1767944865381,0.68630732,139.76,139.73,0.68407606]
[1767944866365,0.68630732,139.76,139.72,7.84118319]
[1767944867351,0.68630732,139.76,139.72,10.04300312]
[1767944867552,2.88931806,139.77,139.73,0.68407606]
[1767944868191,2.20181993,139.78,139.74,0.68407606]
[1767944868847,0.56841675,139.79,139.75,0.68407606]
[1767944869378,0.56841675,139.79,139.75,2.88589599]
[1767944869863,0.68749813,139.8,139.77,0.68407606]
[1767944870054,7.8396483,139.82,139.78,0.68407606]
[1767944870254,0.68749813,139.82,139.78,0.68407606]
[1767944870456,7.83920208,139.83,139.78,0.68407606]
[1767944870776,10.04102201,139.83,139.78,0.68407606]
[1767944870981,13.20216157,139.86,139.82,0.68407606]
[1767944870982,0.68749813,139.86,139.82,0.68407606]
[1767944871278,7.1484738,139.89,139.83,0.68407606]
[1767944871279,2.88931806,139.88,139.83,0.68407606]
[1767944871468,0.56841675,139.87,139.83,0.68407606]
[1767944871665,2.77023668,139.87,139.81,2.88589599]
[1767944871983,0.68630732,139.86,139.81,2.88589599]
[1767944872565,0.68630732,139.86,139.81,0.68407606]
[1767944872788,2.88812725,139.86,139.81,0.68407606]
[1767944873789,2.88812725,139.86,139.82,0.68407606]
[1767944874175,0.68630732,139.86,139.82,0.68407606]
[1767944875382,2.88812725,139.86,139.82,0.68407606]
[1767944876075,10.03814466,139.86,139.82,0.68407606]
[1767944876482,11.27705329,139.86,139.82,0.68407606]
[1767944876792,4.12703588,139.86,139.82,7.83600601]
[1767944877086,4.12703588,139.86,139.82,0.68407606]
[1767944877291,4.12703588,139.86,139.82,7.83611328]
[1767944877588,4.12822669,139.88,139.83,0.68407606]
[1767944879884,11.27743235,139.88,139.83,0.68407606]
[1767944880394,7.83670379,139.88,139.84,0.68407606]
[1767944882373,0.68749813,139.88,139.85,0.68407606]
[1767944882572,7.71703264,139.89,139.85,0.68407606]
[1767944882885,11.1577612,139.89,139.85,0.68407606]
[1767944883816,0.66509684,139.86,139.82,0.66258996]
[1767944883981,4.1058254,139.86,139.82,0.66258996]
[1767944886299,0.66509684,139.86,139.82,0.66258996]
[1767944887014,0.59133161,139.83,139.79,0.66258996]
[1767944887201,4.03206017,139.83,139.79,0.66258996]
[1767944887510,3.44072856,139.8,139.77,0.7001947]
[1767944887678,0.66290594,139.8,139.77,0.7001947]
[1767944887878,0.66290594,139.8,139.75,11.29617887]
[1767944888288,0.66290594,139.8,139.76,3.44072856]
[1767944889702,0.66290594,139.8,139.75,11.29617887]
[1767944889901,0.59276302,139.79,139.75,7.85545031]
[1767944890106,11.27747591,139.8,139.76,0.7001947]
[1767944890684,0.57231762,139.79,139.76,0.7001947]
[1767944890885,11.16687092,139.79,139.75,0.7001947]
[1767944892698,4.12317402,139.78,139.75,0.7001947]
[1767944894005,0.68244546,139.78,139.75,0.7001947]
[1767944894810,0.57341889,139.77,139.74,13.06]
[1767944895011,0.57341889,139.77,139.74,13.7601947]
[1767944895224,7.83785467,139.78,139.74,13.7601947]
[1767944895706,11.27858323,139.78,139.74,13.7601947]
[1767944900406,0.68355786,139.78,139.74,13.7601947]
[1767944901993,4.12428642,139.78,139.74,13.7601947]
[1767944902195,11.27838801,139.78,139.74,13.7601947]
[1767944902395,0.68355786,139.8,139.77,0.7001947]
[1767944902640,0.68355786,139.8,139.76,0.7001947]
[1767944903499,4.12428642,139.8,139.76,0.7001947]
[1767944903800,11.27736224,139.8,139.76,0.7001947]
[1767944904716,3.44072856,139.79,139.76,0.7001947]
[1767944904916,7.72612673,139.79,139.75,0.7001947]
[1767944905108,3.44072856,139.78,139.75,0.7001947]
[1767944905422,11.16685529,139.79,139.75,0.7001947]
[1767944905803,4.01304618,139.79,139.75,0.7001947]
[1767944906499,11.16663536,139.79,139.75,0.7001947]
[1767944908920,7.7259068,139.79,139.75,0.7001947]
[1767944909117,11.16663536,139.79,139.75,0.7001947]
[1767944910401,10.593822,139.8,139.76,0.7001947]
[1767944910606,11.16613962,139.8,139.76,0.7001947]
[1767944911410,7.15309344,139.8,139.76,0.7001947]
[1767944911615,7.15309344,139.8,139.77,0.7001947]
[1767944912221,7.72541106,139.8,139.77,0.7001947]
[1767944917433,0.6813552,139.77,139.74,0.68322117]
[1767944917620,11.27671391,139.77,139.74,0.68322117]
[1767944917936,3.44072856,139.77,139.74,0.68322117]
[1767944918122,11.28606568,139.78,139.74,0.68322117]
[1767944918636,10.59437726,139.79,139.75,0.68322117]
[1767944918928,11.15927111,139.79,139.75,0.68322117]
[1767944919233,7.71854255,139.79,139.75,0.68322117]
[1767944922239,11.15927111,139.79,139.75,0.68322117]
[1767944924022,4.13052355,139.78,139.75,0.68322117]
[1767944924222,11.28497608,139.78,139.75,0.68322117]
[1767944930546,4.13052355,139.78,139.75,0.68322117]
[1767944932529,3.44072856,139.77,139.75,0.68322117]
[1767944933853,0.68979499,139.78,139.75,0.68322117]
[1767944934150,3.44072856,139.79,139.75,0.68322117]
[1767944934450,11.28549686,139.79,139.75,0.68322117]
[1767944935153,3.44072856,139.78,139.75,0.68322117]
[1767944936242,11.28549686,139.79,139.75,0.68322117]
[1767944938153,7.84428775,139.8,139.75,0.68322117]
[1767944938362,7.84428775,139.8,139.76,0.68322117]
[1767944938546,10.04792037,139.8,139.76,0.68322117]
[1767944938740,2.89468924,139.8,139.76,0.68322117]
[1767944940357,2.89468924,139.8,139.77,0.68322117]
[1767944940659,10.04635207,139.83,139.78,0.68322117]
[1767944941358,2.76852647,139.82,139.78,0.68322117]
[1767944941537,2.20363262,139.8,139.78,0.68322117]
[1767944944149,7.84248461,139.81,139.78,0.68322117]
[1767944944349,2.89342761,139.81,139.78,0.68322117]
[1767944945257,10.04606404,139.81,139.78,0.68322117]
[1767944947473,2.89219109,139.79,139.76,0.6622066]
[1767944948369,2.20363262,139.79,139.76,0.6622066]
[1767944949877,0.71951035,139.8,139.76,0.6622066]
[1767944950174,2.20363262,139.79,139.76,0.6622066]
[1767944950971,0.71951035,139.8,139.76,0.6622066]
[1767944951274,2.20363262,139.79,139.76,0.6622066]
[1767944952378,9.89677799,139.77,139.74,0.69302064]
[1767944952575,2.20363262,139.76,139.74,0.69302064]
[1767944953274,2.17363263,139.76,139.74,0.69302064]
[1767944953474,2.20363262,139.76,139.74,0.69302064]
[1767944955769,9.3588821,139.76,139.74,0.69302064]
[1767944955970,2.20363262,139.76,139.74,0.69302064]
[1767944956155,9.35890166,139.76,139.74,0.69302064]
[1767944956677,7.15526904,139.76,139.74,0.69302064]
[1767944957081,2.20363262,139.75,139.72,0.69302064]
[1767944957586,2.74394042,139.75,139.72,0.69302064]
[1767944957768,0.5403078,139.75,139.72,0.69302064]
[1767944957976,10.07841201,139.76,139.72,0.69302064]
[1767944959786,0.71951035,139.77,139.73,0.69302064]
[1767944959988,2.92314297,139.77,139.73,0.69302064]
[1767944960187,2.20363262,139.77,139.73,0.69302064]
[1767944960588,0.71951035,139.78,139.74,0.69302064]
[1767944962300,2.92314297,139.78,139.74,0.69302064]
[1767944963094,10.07728609,139.78,139.74,0.69302064]
[1767944963999,2.92314297,139.78,139.74,0.69302064]
[1767944964698,35.75118463,139.86,139.77,0.69302064]
[1767944964881,2.20363262,139.82,139.77,0.69302064]
[1767944965193,0.71951035,139.81,139.77,0.69302064]
[1767944965390,0.71951035,139.85,139.78,0.69302064]
[1767944965594,2.20363262,139.86,139.78,0.69302064]
[1767944965595,2.92314297,139.83,139.78,0.69302064]
[1767944965814,2.92314297,139.83,139.79,0.69302064]
[1767944965815,0.71951035,139.83,139.79,0.69302064]
[1767944965980,2.92314297,139.83,139.79,0.69302064]
[1767944967492,2.20363262,139.82,139.79,0.69302064]
[1767944969090,2.20363262,139.82,139.79,0.63302064]
[1767944969505,0.71951035,139.83,139.79,7.78646609]
[1767944969685,2.92314297,139.83,139.79,0.63302064]
[1767944969883,10.07473945,139.83,139.79,0.63302064]
[1767944970300,2.92314297,139.83,139.79,0.63302064]
[1767944972402,2.20363262,139.82,139.79,0.63302064]
[1767944973478,2.89762979,139.82,139.79,0.63302064]
[1767944973913,2.20363262,139.81,139.79,0.63302064]
[1767944974390,0.69399717,139.82,139.79,0.63302064]
[1767944974391,2.89762979,139.82,139.79,0.63302064]
[1767944975097,2.89762979,139.81,139.77,0.66752395]
[1767944975312,0.69399717,139.81,139.77,0.66752395]
[1767944975481,2.20363262,139.8,139.77,0.66752395]
[1767944975881,7.84610027,139.82,139.78,0.66752395]
[1767944976102,0.69399717,139.81,139.78,0.66752395]
[1767944976398,2.89762979,139.81,139.78,0.66752395]
[1767944976980,2.89762979,139.82,139.78,0.66752395]
[1767944977919,2.89762979,139.83,139.79,0.66752395]
[1767944979989,10.04917538,139.83,139.79,0.66752395]
[1767944980388,2.20363262,139.82,139.79,0.66752395]
[1767944980712,2.89762979,139.82,139.79,0.66752395]
[1767944981496,7.15154559,139.83,139.75,0.66752395]
[1767944981497,0.69399717,139.79,139.75,0.66752395]
[1767944981698,2.20363262,139.78,139.75,0.66752395]
[1767944981896,2.89762979,139.79,139.75,0.66752395]
[1767944982507,2.89762979,139.79,139.75,7.82314003]
[1767944982903,7.84784667,139.79,139.75,0.66752395]
[1767944983106,2.89762979,139.77,139.74,13.06]
[1767944983514,0.69399717,139.77,139.74,13.06]
[1767944983707,0.69399717,139.77,139.74,20.21609246]
[1767944984116,2.89762979,139.78,139.75,0.66752395]
[1767944984315,0.69399717,139.78,139.75,0.66752395]
[1767944984521,2.89762979,139.78,139.75,0.66752395]
[1767944985809,10.05177716,139.78,139.75,0.66752395]
[1767944986012,2.20363262,139.77,139.74,13.72752395]
[1767944989931,10.05177716,139.78,139.74,13.72752395]
[1767944990636,0.69399717,139.78,139.75,0.66752395]
[1767944990935,0.69399717,139.79,139.75,0.66752395]
[1767944991128,2.89762979,139.79,139.75,0.66752395]
[1767944992110,0.69399717,139.78,139.75,0.66752395]
[1767944992315,2.89762979,139.78,139.74,20.88357821]
[1767944992635,2.89762979,139.78,139.75,13.06]
[1767944993432,2.89762979,139.78,139.75,13.72752395]
[1767944993735,0.69399717,139.78,139.75,13.72752395]
[1767944995342,0.69399717,139.78,139.75,0.66752395]
[1767944995541,0.69399717,139.78,139.75,13.72752395]
[1767944996530,0.69399717,139.78,139.75,0.66752395]
[1767944996835,0.69399717,139.78,139.75,13.72752395]
[1767944997357,0.69399717,139.78,139.75,13.06]
[1767944997642,0.69399717,139.78,139.75,13.72752395]
[1767944998854,0.69399717,139.78,139.75,20.88310813]
[1767944999020,0.69399717,139.77,139.75,13.06]
[1767944999919,0.69399717,139.77,139.74,13.72752395]
[1767945000326,0.69399717,139.77,139.74,13.06]
[1767945000733,0.69399717,139.77,139.73,0.66752395]
[1767945000734,0.69399717,139.76,139.73,13.72752395]
[1767945001536,0.69399717,139.78,139.74,0.66752395]
[1767945001737,0.69399717,139.78,139.75,0.66752395]
[1767945002252,0.66399718,139.78,139.75,0.66752395]
[1767945002956,10.59808267,139.78,139.73,17.22509347]
[1767945003124,7.15414613,139.78,139.73,17.22509347]
[1767945003325,10.59808267,139.78,139.73,17.22509347]
[1767945003848,3.44393654,139.78,139.73,11.32166468]
[1767945004038,3.44393654,139.78,139.74,13.78115693]
[1767945004236,0.70738833,139.77,139.74,13.78115693]
[1767945004750,0.70738833,139.77,139.74,0.72115693]
[1767945004923,0.70738833,139.77,139.74,13.78115693]
[1767945006648,0.70738833,139.77,139.74,20.93729806]
[1767945006853,0.70738833,139.77,139.74,24.3812346]
[1767945007036,0.70738833,139.77,139.74,17.22509347]
[1767945013052,0.70738833,139.77,139.74,13.78115693]
[1767945014854,7.86213879,139.77,139.74,13.78115693]
[1767945015056,0.6694509,139.75,139.72,0.71768268]
[1767945015261,0.6694509,139.75,139.72,13.77768268]
[1767945015440,4.11338744,139.76,139.73,0.71768268]
[1767945017257,11.26880253,139.76,139.73,0.71768268]
[1767945017959,7.82486599,139.76,139.73,4.16161922]
[1767945018162,0.6694509,139.76,139.73,4.16161922]
[1767945018460,7.82476832,139.76,139.73,4.16161922]
[1767945018667,7.82476832,139.76,139.73,0.71768268]
[1767945018966,7.82476832,139.76,139.73,4.16161922]
[1767945020469,0.6694509,139.75,139.72,13.06]
[1767945020768,0.6694509,139.75,139.72,16.50393654]